[Event "Early-Titled-Tuesday-Blitz-March-12-2024"]
[Site "Chess.com"]
[Date "2024.03.12"]
[Round "3"]
[White "amelia91"]
[Black "RamonManon0g"]
[Result "1-0"]
[WhiteElo "2071"]
[BlackElo "2402"]
[TimeControl "180+1"]
[EndTime "8:28:12 PDT"]
[Termination "amelia91 won by checkmate"]

1. d4 {[%clk 0:03:00.9]} 1... Nf6 {[%clk 0:02:56.7]} 2. Bf4 {[%clk 0:02:59.8]}
2... g6 {[%clk 0:02:56.9]} 3. Nc3 {[%clk 0:02:59.1]} 3... d5 {[%clk 0:02:57.1]}
4. e3 {[%clk 0:02:58.8]} 4... Bg7 {[%clk 0:02:57.3]} 5. Nf3 {[%clk 0:02:57.9]}
5... O-O {[%clk 0:02:57.4]} 6. Nb5 {[%clk 0:02:52.3]} 6... Na6 {[%clk
0:02:56.7]} 7. c4 {[%clk 0:02:52]} 7... c5 {[%clk 0:02:56]} 8. Be2 {[%clk
0:02:48.1]} 8... cxd4 {[%clk 0:02:51.2]} 9. Nbxd4 {[%clk 0:02:40]} 9... dxc4
{[%clk 0:02:44.4]} 10. O-O {[%clk 0:02:38]} 10... Nd5 {[%clk 0:02:43.1]} 11. Bg3
{[%clk 0:02:27]} 11... c3 {[%clk 0:02:42.8]} 12. bxc3 {[%clk 0:02:21.6]} 12...
Nxc3 {[%clk 0:02:43.7]} 13. Qd2 {[%clk 0:02:21.5]} 13... Nxe2+ {[%clk
0:02:42.5]} 14. Qxe2 {[%clk 0:02:22.4]} 14... Bg4 {[%clk 0:02:34.1]} 15. Rad1
{[%clk 0:02:17.9]} 15... Qa5 {[%clk 0:02:30.3]} 16. h3 {[%clk 0:02:15.9]} 16...
Bf5 {[%clk 0:02:26.4]} 17. e4 {[%clk 0:02:01.2]} 17... Bd7 {[%clk 0:02:20.7]}
18. Rfe1 {[%clk 0:01:54.7]} 18... Ba4 {[%clk 0:02:18.1]} 19. Rc1 {[%clk
0:01:51]} 19... Rac8 {[%clk 0:02:15.3]} 20. e5 {[%clk 0:01:37.3]} 20... e6
{[%clk 0:02:05]} 21. Bh4 {[%clk 0:01:20.5]} 21... Nb4 {[%clk 0:01:59.7]} 22. Qd2
{[%clk 0:01:01.4]} 22... b6 {[%clk 0:01:55.7]} 23. Be7 {[%clk 0:00:58.9]} 23...
Nd5 {[%clk 0:01:41]} 24. Qxa5 {[%clk 0:00:57.4]} 24... bxa5 {[%clk 0:01:41.9]}
25. Bxf8 {[%clk 0:00:56.9]} 25... Rxf8 {[%clk 0:01:42.8]} 26. Rc5 {[%clk
0:00:53.1]} 26... Bh6 {[%clk 0:01:21.3]} 27. Rxa5 {[%clk 0:00:51.6]} 27... Bd7
{[%clk 0:01:15.9]} 28. Rxa7 {[%clk 0:00:51]} 28... Bc8 {[%clk 0:01:16]} 29. Rb1
{[%clk 0:00:45]} 29... f6 {[%clk 0:00:54.8]} 30. exf6 {[%clk 0:00:38]} 30...
Nxf6 {[%clk 0:00:55.7]} 31. Rb8 {[%clk 0:00:29.7]} 31... Ne4 {[%clk 0:00:54.2]}
32. Raa8 {[%clk 0:00:27]} 32... Bd7 {[%clk 0:00:53.4]} 33. Rxf8+ {[%clk
0:00:26.3]} 33... Bxf8 {[%clk 0:00:54.3]} 34. Ne5 {[%clk 0:00:25.7]} 34... Nf6
{[%clk 0:00:42.4]} 35. Nxd7 {[%clk 0:00:24.3]} 35... Nxd7 {[%clk 0:00:42.2]} 36.
Nxe6 {[%clk 0:00:24.5]} 36... Kf7 {[%clk 0:00:42.2]} 37. Nxf8 {[%clk 0:00:24.5]}
37... Nxf8 {[%clk 0:00:43.1]} 38. a4 {[%clk 0:00:23.7]} 38... Nd7 {[%clk
0:00:42.8]} 39. Ra7 {[%clk 0:00:22.3]} 39... Ke6 {[%clk 0:00:43.7]} 40. Kf1
{[%clk 0:00:21.8]} 40... Nb6 {[%clk 0:00:41.2]} 41. a5 {[%clk 0:00:20.8]} 41...
Nd5 {[%clk 0:00:39.7]} 42. a6 {[%clk 0:00:20.7]} 42... Kd6 {[%clk 0:00:36.6]}
43. Rxh7 {[%clk 0:00:20.1]} 43... Kc6 {[%clk 0:00:36.6]} 44. a7 {[%clk
0:00:19.9]} 44... Nb6 {[%clk 0:00:36.7]} 45. Rh8 {[%clk 0:00:17.3]} 45... Kb7
{[%clk 0:00:36.5]} 46. Rg8 {[%clk 0:00:17.3]} 46... Kxa7 {[%clk 0:00:35.4]} 47.
Rxg6 {[%clk 0:00:17.8]} 47... Nd5 {[%clk 0:00:34.9]} 48. h4 {[%clk 0:00:18]}
48... Nf4 {[%clk 0:00:34.1]} 49. Rg7+ {[%clk 0:00:18.3]} 49... Kb6 {[%clk
0:00:32.7]} 50. g3 {[%clk 0:00:19.2]} 50... Ne6 {[%clk 0:00:29.2]} 51. Rg6
{[%clk 0:00:19.4]} 51... Kc5 {[%clk 0:00:29.5]} 52. Rxe6 {[%clk 0:00:20.3]}
52... Kd5 {[%clk 0:00:30.1]} 53. Re8 {[%clk 0:00:19.8]} 53... Kd6 {[%clk
0:00:30.4]} 54. h5 {[%clk 0:00:20.2]} 54... Kd7 {[%clk 0:00:31.3]} 55. Re2
{[%clk 0:00:20.1]} 55... Kd6 {[%clk 0:00:31.3]} 56. h6 {[%clk 0:00:20.8]} 56...
Kd5 {[%clk 0:00:32.2]} 57. h7 {[%clk 0:00:21.3]} 57... Kd4 {[%clk 0:00:33.1]}
58. h8=Q+ {[%clk 0:00:21.7]} 58... Kd3 {[%clk 0:00:34]} 59. Qe5 {[%clk
0:00:21.2]} 59... Kc4 {[%clk 0:00:33.1]} 60. Qe4+ {[%clk 0:00:21]} 60... Kc3
{[%clk 0:00:32.9]} 61. Rc2+ {[%clk 0:00:21.9]} 61... Kb3 {[%clk 0:00:33.2]} 62.
Qc4+ {[%clk 0:00:22.2]} 62... Ka3 {[%clk 0:00:33.4]} 63. Ra2# {[%clk 0:00:23.1]}
1-0

[Event "Early-Titled-Tuesday-Blitz-March-12-2024"]
[Site "Chess.com"]
[Date "2024.03.12"]
[Round "3"]
[White "AlessiaSanteramo"]
[Black "becemix"]
[Result "1-0"]
[WhiteElo "2258"]
[BlackElo "2452"]
[TimeControl "180+1"]
[EndTime "8:28:14 PDT"]
[Termination "AlessiaSanteramo won on time"]

1. e4 {[%clk 0:02:56.2]} 1... c5 {[%clk 0:02:58.1]} 2. Nf3 {[%clk 0:02:40.2]}
2... d6 {[%clk 0:02:50.5]} 3. Bb5+ {[%clk 0:02:39]} 3... Nd7 {[%clk 0:02:47.7]}
4. d4 {[%clk 0:02:38.1]} 4... cxd4 {[%clk 0:02:43.7]} 5. Qxd4 {[%clk 0:02:37.9]}
5... a6 {[%clk 0:02:43.2]} 6. Bxd7+ {[%clk 0:02:37.5]} 6... Bxd7 {[%clk
0:02:42.5]} 7. c4 {[%clk 0:02:38.1]} 7... Bc6 {[%clk 0:02:38.2]} 8. Nc3 {[%clk
0:02:37.5]} 8... e6 {[%clk 0:02:35.2]} 9. O-O {[%clk 0:02:35.8]} 9... Ne7 {[%clk
0:02:30.8]} 10. Rd1 {[%clk 0:02:19]} 10... Ng6 {[%clk 0:02:29.7]} 11. Be3 {[%clk
0:01:51.3]} 11... h6 {[%clk 0:02:17.4]} 12. b4 {[%clk 0:01:32.2]} 12... Be7
{[%clk 0:02:02.8]} 13. c5 {[%clk 0:01:11.7]} 13... Bf6 {[%clk 0:01:57.7]} 14.
Qc4 {[%clk 0:01:03.1]} 14... d5 {[%clk 0:01:38.2]} 15. Qb3 {[%clk 0:00:23.5]}
15... O-O {[%clk 0:01:30.7]} 16. Rac1 {[%clk 0:00:21.5]} 16... Qe8 {[%clk
0:00:47.8]} 17. exd5 {[%clk 0:00:20.8]} 17... exd5 {[%clk 0:00:40.3]} 18. Nxd5
{[%clk 0:00:20.7]} 18... Bd8 {[%clk 0:00:39.8]} 19. Re1 {[%clk 0:00:18.5]} 19...
Qe6 {[%clk 0:00:36.1]} 20. Rcd1 {[%clk 0:00:13.6]} 20... Qg4 {[%clk 0:00:21.6]}
21. h3 {[%clk 0:00:11.7]} 21... Qh5 {[%clk 0:00:21.7]} 22. Kh2 {[%clk
0:00:05.9]} 22... Nh4 {[%clk 0:00:21.7]} 23. Nxh4 {[%clk 0:00:05.2]} 23... Qxh4
{[%clk 0:00:22]} 24. Rd4 {[%clk 0:00:05]} 24... Qh5 {[%clk 0:00:20.9]} 25. Red1
{[%clk 0:00:05.5]} 25... Bg5 {[%clk 0:00:14.8]} 26. Nf4 {[%clk 0:00:04.9]} 26...
Bxf4+ {[%clk 0:00:14.3]} 27. Rxf4 {[%clk 0:00:05.8]} 27... Rad8 {[%clk
0:00:12.4]} 28. Rxd8 {[%clk 0:00:05.2]} 28... Rxd8 {[%clk 0:00:13.3]} 29. Qc3
{[%clk 0:00:05.2]} 29... Qd5 {[%clk 0:00:10]} 30. Rg4 {[%clk 0:00:05.4]} 30...
g6 {[%clk 0:00:10.1]} 31. Bxh6 {[%clk 0:00:05.2]} 31... f6 {[%clk 0:00:02.1]}
32. Qxf6 {[%clk 0:00:03.2]} 32... Qf7 {[%clk 0:00:02.5]} 33. Rxg6+ {[%clk
0:00:03.4]} 1-0

[Event "Early-Titled-Tuesday-Blitz-March-12-2024"]
[Site "Chess.com"]
[Date "2024.03.12"]
[Round "3"]
[White "Felix-Rose"]
[Black "AttilaTurzo"]
[Result "0-1"]
[WhiteElo "2234"]
[BlackElo "2468"]
[TimeControl "180+1"]
[EndTime "8:28:17 PDT"]
[Termination "AttilaTurzo won by resignation"]

1. d4 {[%clk 0:03:00.3]} 1... Nf6 {[%clk 0:02:57.1]} 2. Nc3 {[%clk 0:03:00.6]}
2... d5 {[%clk 0:02:56.3]} 3. Bf4 {[%clk 0:03:00.7]} 3... a6 {[%clk 0:02:55.4]}
4. Qd3 {[%clk 0:03:00.4]} 4... Bg4 {[%clk 0:02:52]} 5. O-O-O {[%clk 0:02:59.5]}
5... Bh5 {[%clk 0:02:51.4]} 6. f3 {[%clk 0:02:58.7]} 6... Bg6 {[%clk 0:02:51.4]}
7. e4 {[%clk 0:02:58.1]} 7... e6 {[%clk 0:02:49.4]} 8. Nge2 {[%clk 0:02:53]}
8... Nc6 {[%clk 0:02:45]} 9. Qe3 {[%clk 0:02:50.9]} 9... Be7 {[%clk 0:02:39.6]}
10. h4 {[%clk 0:02:43.1]} 10... h5 {[%clk 0:02:20.8]} 11. e5 {[%clk 0:02:39.6]}
11... Nd7 {[%clk 0:02:18.8]} 12. Bg5 {[%clk 0:02:38.9]} 12... Nb6 {[%clk
0:02:12.9]} 13. Bxe7 {[%clk 0:02:28.8]} 13... Qxe7 {[%clk 0:02:12.4]} 14. Nf4
{[%clk 0:02:28.7]} 14... Bf5 {[%clk 0:02:12.5]} 15. Be2 {[%clk 0:02:27.3]} 15...
Nb4 {[%clk 0:02:07.5]} 16. Rd2 {[%clk 0:02:13.8]} 16... O-O-O {[%clk 0:01:58.9]}
17. g4 {[%clk 0:02:09]} 17... hxg4 {[%clk 0:01:58.4]} 18. fxg4 {[%clk
0:02:09.3]} 18... Bh7 {[%clk 0:01:44.7]} 19. h5 {[%clk 0:01:49.9]} 19... Kb8
{[%clk 0:01:43.2]} 20. a3 {[%clk 0:01:47.4]} 20... Nc6 {[%clk 0:01:41.6]} 21.
Qg3 {[%clk 0:01:39.4]} 21... Na5 {[%clk 0:01:39]} 22. g5 {[%clk 0:01:38.2]}
22... Nac4 {[%clk 0:01:34.1]} 23. Bxc4 {[%clk 0:01:27.2]} 23... Nxc4 {[%clk
0:01:35]} 24. Rg2 {[%clk 0:01:27.6]} 24... Bf5 {[%clk 0:01:34.3]} 25. g6 {[%clk
0:01:19.1]} 25... f6 {[%clk 0:01:32]} 26. Qf2 {[%clk 0:00:57.1]} 26... fxe5
{[%clk 0:01:27]} 27. Nfxd5 {[%clk 0:00:56.7]} 27... exd5 {[%clk 0:01:19.1]} 28.
Qxf5 {[%clk 0:00:55.9]} 28... Ne3 {[%clk 0:01:19.5]} 29. Qf3 {[%clk 0:00:52.3]}
29... Nxg2 {[%clk 0:01:19.1]} 30. Qxg2 {[%clk 0:00:50.5]} 30... exd4 {[%clk
0:01:19.4]} 31. Nxd5 {[%clk 0:00:46.3]} 31... Qe5 {[%clk 0:01:17.4]} 32. Nb4
{[%clk 0:00:44.6]} 32... Rxh5 {[%clk 0:01:13.2]} 33. Nd3 {[%clk 0:00:39.1]}
33... Qg5+ {[%clk 0:01:10.8]} 34. Qxg5 {[%clk 0:00:37.3]} 34... Rxg5 {[%clk
0:01:11.7]} 35. Nf4 {[%clk 0:00:33.6]} 35... Re8 {[%clk 0:01:00]} 36. Rh7 {[%clk
0:00:22.8]} 36... Rg4 {[%clk 0:00:59.5]} 37. Nh5 {[%clk 0:00:16.4]} 37... Rxg6
{[%clk 0:00:57.6]} 38. Nxg7 {[%clk 0:00:17]} 38... Re7 {[%clk 0:00:49.8]} 39.
Rh8+ {[%clk 0:00:17.1]} 39... Ka7 {[%clk 0:00:50]} 40. Nf5 {[%clk 0:00:17.8]}
40... Rd7 {[%clk 0:00:39.9]} 41. Rh3 {[%clk 0:00:16.5]} 41... c5 {[%clk
0:00:39.7]} 42. b3 {[%clk 0:00:15.9]} 42... Rg5 {[%clk 0:00:36.4]} 43. Ng3
{[%clk 0:00:13.9]} 43... Re7 {[%clk 0:00:34.3]} 44. Kd2 {[%clk 0:00:12.8]} 44...
Re3 {[%clk 0:00:33.8]} 45. Ne4 {[%clk 0:00:10.1]} 45... Rxe4 {[%clk 0:00:32.9]}
46. a4 {[%clk 0:00:09.6]} 0-1

[Event "Early-Titled-Tuesday-Blitz-March-12-2024"]
[Site "Chess.com"]
[Date "2024.03.12"]
[Round "3"]
[White "UnTucopalaTimba"]
[Black "PIwan"]
[Result "0-1"]
[WhiteElo "1984"]
[BlackElo "2412"]
[TimeControl "180+1"]
[EndTime "8:28:22 PDT"]
[Termination "PIwan won by resignation"]

1. e4 {[%clk 0:02:59.1]} 1... e6 {[%clk 0:03:00.9]} 2. d4 {[%clk 0:02:57.8]}
2... d5 {[%clk 0:03:01.8]} 3. exd5 {[%clk 0:02:55.7]} 3... exd5 {[%clk
0:03:01.6]} 4. Bd3 {[%clk 0:02:55.8]} 4... Nf6 {[%clk 0:03:01.9]} 5. Ne2 {[%clk
0:02:54.7]} 5... Be7 {[%clk 0:03:02]} 6. O-O {[%clk 0:02:53.9]} 6... O-O {[%clk
0:03:02.4]} 7. Bf4 {[%clk 0:02:52.7]} 7... c5 {[%clk 0:03:02.5]} 8. c3 {[%clk
0:02:50.3]} 8... Nc6 {[%clk 0:03:02.5]} 9. dxc5 {[%clk 0:02:31.5]} 9... Bxc5
{[%clk 0:03:01.9]} 10. Nd2 {[%clk 0:02:29.1]} 10... Bg4 {[%clk 0:02:59.8]} 11.
Nb3 {[%clk 0:02:22.4]} 11... Bb6 {[%clk 0:02:59.1]} 12. Qd2 {[%clk 0:02:19.5]}
12... Re8 {[%clk 0:02:55.5]} 13. Ned4 {[%clk 0:02:17.3]} 13... Ne5 {[%clk
0:02:52.4]} 14. Bc2 {[%clk 0:02:08.1]} 14... Nc4 {[%clk 0:02:50.4]} 15. Qc1
{[%clk 0:02:05.4]} 15... Qd7 {[%clk 0:02:41.3]} 16. Bd3 {[%clk 0:01:44.3]} 16...
Rac8 {[%clk 0:02:36.9]} 17. Qc2 {[%clk 0:01:32.1]} 17... h6 {[%clk 0:02:03.2]}
18. Rfe1 {[%clk 0:01:29]} 18... Rxe1+ {[%clk 0:01:54.7]} 19. Rxe1 {[%clk
0:01:28.6]} 19... Re8 {[%clk 0:01:55.6]} 20. Rxe8+ {[%clk 0:01:24.1]} 20... Qxe8
{[%clk 0:01:56.5]} 21. Kf1 {[%clk 0:01:20.7]} 21... Ne5 {[%clk 0:01:38.7]} 22.
Bf5 {[%clk 0:01:10.8]} 22... Bxf5 {[%clk 0:01:33.9]} 23. Qxf5 {[%clk 0:01:10.2]}
23... Ned7 {[%clk 0:01:23.6]} 24. f3 {[%clk 0:01:02.3]} 24... Qc8 {[%clk
0:01:18.4]} 25. g4 {[%clk 0:00:52.9]} 25... Qc4+ {[%clk 0:01:16.8]} 26. Kf2
{[%clk 0:00:51.6]} 26... a5 {[%clk 0:01:16.5]} 27. Bd6 {[%clk 0:00:48.1]} 27...
a4 {[%clk 0:01:13.8]} 28. Nd2 {[%clk 0:00:46.2]} 28... Bxd4+ {[%clk 0:01:13.3]}
29. cxd4 {[%clk 0:00:42.7]} 29... Qxd4+ {[%clk 0:01:14.2]} 30. Ke2 {[%clk
0:00:40.7]} 30... Qxb2 {[%clk 0:01:10.7]} 31. Be7 {[%clk 0:00:37.5]} 31... Qe5+
{[%clk 0:01:01.9]} 32. Qxe5 {[%clk 0:00:34.8]} 32... Nxe5 {[%clk 0:01:02.8]} 33.
Bxf6 {[%clk 0:00:33.6]} 33... gxf6 {[%clk 0:01:03.7]} 34. h3 {[%clk 0:00:31.9]}
34... Kf8 {[%clk 0:00:59]} 35. Nb1 {[%clk 0:00:30.2]} 35... d4 {[%clk 0:00:51]}
36. Na3 {[%clk 0:00:26.9]} 36... Ke7 {[%clk 0:00:48.9]} 37. Nb5 {[%clk
0:00:26.1]} 37... d3+ {[%clk 0:00:46.1]} 38. Ke3 {[%clk 0:00:23.1]} 38... Kd7
{[%clk 0:00:43.7]} 39. f4 {[%clk 0:00:22.2]} 39... Ng6 {[%clk 0:00:43.8]} 40.
Nd4 {[%clk 0:00:20.6]} 40... Kd6 {[%clk 0:00:27.1]} 41. Nb5+ {[%clk 0:00:18.9]}
41... Kc5 {[%clk 0:00:27]} 42. Nc3 {[%clk 0:00:19]} 42... b5 {[%clk 0:00:25.5]}
43. f5 {[%clk 0:00:18]} 43... Ne5 {[%clk 0:00:24.7]} 44. Ne4+ {[%clk 0:00:18]}
44... Kc4 {[%clk 0:00:23.9]} 45. Nxf6 {[%clk 0:00:17.6]} 45... Kc3 {[%clk
0:00:22.8]} 46. Ne4+ {[%clk 0:00:16.7]} 46... Kc2 {[%clk 0:00:22.9]} 47. Nd2
{[%clk 0:00:13.9]} 47... Nc4+ {[%clk 0:00:22.6]} 48. Nxc4 {[%clk 0:00:13.6]}
48... bxc4 {[%clk 0:00:23.5]} 0-1

[Event "Early-Titled-Tuesday-Blitz-March-12-2024"]
[Site "Chess.com"]
[Date "2024.03.12"]
[Round "3"]
[White "luckyswitchback"]
[Black "FaustinoOro"]
[Result "0-1"]
[WhiteElo "2673"]
[BlackElo "2909"]
[TimeControl "180+1"]
[EndTime "8:28:23 PDT"]
[Termination "FaustinoOro won by resignation"]

1. e4 {[%clk 0:03:00.9]} 1... e5 {[%clk 0:02:57.7]} 2. Nf3 {[%clk 0:03:00.5]}
2... Nc6 {[%clk 0:02:58.2]} 3. Bb5 {[%clk 0:03:00.1]} 3... a6 {[%clk 0:02:58.4]}
4. Ba4 {[%clk 0:02:59.9]} 4... Nf6 {[%clk 0:02:58.5]} 5. O-O {[%clk 0:02:59.5]}
5... b5 {[%clk 0:02:58.3]} 6. Bb3 {[%clk 0:02:59.2]} 6... Bc5 {[%clk 0:02:58.9]}
7. d3 {[%clk 0:02:58]} 7... O-O {[%clk 0:02:54.5]} 8. a4 {[%clk 0:02:57.5]} 8...
Rb8 {[%clk 0:02:53.8]} 9. Bg5 {[%clk 0:02:55]} 9... h6 {[%clk 0:02:51.7]} 10.
Bxf6 {[%clk 0:02:50.6]} 10... Qxf6 {[%clk 0:02:50.4]} 11. axb5 {[%clk
0:02:51.2]} 11... axb5 {[%clk 0:02:49.7]} 12. Nc3 {[%clk 0:02:51.9]} 12... d6
{[%clk 0:02:48.7]} 13. Nd5 {[%clk 0:02:46.7]} 13... Qd8 {[%clk 0:02:48.6]} 14.
h3 {[%clk 0:02:40.3]} 14... Kh8 {[%clk 0:02:45.7]} 15. c3 {[%clk 0:02:39.8]}
15... f5 {[%clk 0:02:16.5]} 16. exf5 {[%clk 0:02:40.7]} 16... Bxf5 {[%clk
0:02:13.3]} 17. d4 {[%clk 0:02:40.5]} 17... exd4 {[%clk 0:02:12.5]} 18. Nxd4
{[%clk 0:02:36]} 18... Nxd4 {[%clk 0:01:41.6]} 19. cxd4 {[%clk 0:02:36.9]} 19...
Bb6 {[%clk 0:01:42.3]} 20. Nxb6 {[%clk 0:02:10.7]} 20... Rxb6 {[%clk 0:01:43.2]}
21. Qh5 {[%clk 0:02:10.5]} 21... c5 {[%clk 0:01:35.6]} 22. dxc5 {[%clk
0:02:02.5]} 22... dxc5 {[%clk 0:01:36.5]} 23. Rad1 {[%clk 0:01:04]} 23... Qf6
{[%clk 0:01:33.9]} 24. Rd2 {[%clk 0:01:00.6]} 24... c4 {[%clk 0:01:25.8]} 25.
Bd1 {[%clk 0:00:59.2]} 25... b4 {[%clk 0:01:19.3]} 26. Bg4 {[%clk 0:00:53.8]}
26... Bg6 {[%clk 0:01:01.7]} 27. Qc5 {[%clk 0:00:52.8]} 27... c3 {[%clk
0:01:00.3]} 28. bxc3 {[%clk 0:00:51.3]} 28... bxc3 {[%clk 0:01:01.2]} 29. Rdd1
{[%clk 0:00:28.1]} 29... Rc6 {[%clk 0:00:58.4]} 30. Qe3 {[%clk 0:00:26.7]} 30...
c2 {[%clk 0:00:49.4]} 31. Rc1 {[%clk 0:00:26.5]} 31... Rd8 {[%clk 0:00:37.5]}
32. Rfe1 {[%clk 0:00:20.1]} 32... Kh7 {[%clk 0:00:34.1]} 33. Bf3 {[%clk
0:00:16.4]} 33... Rc3 {[%clk 0:00:26.1]} 34. Qe2 {[%clk 0:00:16.5]} 34... Rb8
{[%clk 0:00:20.9]} 35. Be4 {[%clk 0:00:16.6]} 35... Rbc8 {[%clk 0:00:16.9]} 36.
Qg4 {[%clk 0:00:15.9]} 36... Bxe4 {[%clk 0:00:11.8]} 37. Qxe4+ {[%clk
0:00:16.8]} 37... Kh8 {[%clk 0:00:12.5]} 38. Re2 {[%clk 0:00:17]} 38... R3c4
{[%clk 0:00:08.2]} 39. Rcxc2 {[%clk 0:00:13]} 39... Qa1+ {[%clk 0:00:05.5]} 40.
Kh2 {[%clk 0:00:11.7]} 40... Qa4 {[%clk 0:00:04.6]} 41. Rxc4 {[%clk 0:00:11.8]}
41... Qxc4 {[%clk 0:00:05.2]} 42. Qe5 {[%clk 0:00:11.2]} 42... Qf7 {[%clk
0:00:04.4]} 43. Qf4 {[%clk 0:00:11.2]} 43... Qxf4+ {[%clk 0:00:04.5]} 44. g3
{[%clk 0:00:11.1]} 44... Qf3 {[%clk 0:00:04.9]} 0-1

[Event "Early-Titled-Tuesday-Blitz-March-12-2024"]
[Site "Chess.com"]
[Date "2024.03.12"]
[Round "3"]
[White "Peng_Li-Min"]
[Black "Shuvalov"]
[Result "1-0"]
[WhiteElo "2806"]
[BlackElo "2520"]
[TimeControl "180+1"]
[EndTime "8:28:30 PDT"]
[Termination "Peng_Li-Min won by checkmate"]

1. e4 {[%clk 0:02:49.3]} 1... e6 {[%clk 0:02:59.9]} 2. d4 {[%clk 0:02:27]} 2...
d5 {[%clk 0:02:59.4]} 3. Nc3 {[%clk 0:02:23.9]} 3... Bb4 {[%clk 0:02:58.6]} 4.
Ne2 {[%clk 0:02:23.1]} 4... Nc6 {[%clk 0:02:57.8]} 5. a3 {[%clk 0:02:18.3]} 5...
Ba5 {[%clk 0:02:57.6]} 6. b4 {[%clk 0:02:18]} 6... Bb6 {[%clk 0:02:57.9]} 7. Bb2
{[%clk 0:02:18.4]} 7... Nge7 {[%clk 0:02:50.5]} 8. g3 {[%clk 0:02:18.1]} 8... e5
{[%clk 0:02:49.4]} 9. dxe5 {[%clk 0:00:18.4]} 9... Nxe5 {[%clk 0:02:45.3]} 10.
Bg2 {[%clk 0:00:18.7]} 10... Bxf2+ {[%clk 0:02:23.2]} 11. Kxf2 {[%clk
0:00:17.5]} 11... Ng4+ {[%clk 0:02:23.6]} 12. Kg1 {[%clk 0:00:15.7]} 12... Ne3
{[%clk 0:02:14.2]} 13. Qd3 {[%clk 0:00:14.6]} 13... Nc4 {[%clk 0:02:01.3]} 14.
Bc1 {[%clk 0:00:09.1]} 14... c6 {[%clk 0:01:49]} 15. h3 {[%clk 0:00:06.1]} 15...
O-O {[%clk 0:01:43.5]} 16. exd5 {[%clk 0:00:05.6]} 16... cxd5 {[%clk 0:01:43]}
17. Nxd5 {[%clk 0:00:05.9]} 17... Ne5 {[%clk 0:01:37.9]} 18. Nxe7+ {[%clk
0:00:05.6]} 18... Qxe7 {[%clk 0:01:38.6]} 19. Qe4 {[%clk 0:00:05.2]} 19... Qf6
{[%clk 0:01:36.5]} 20. Bf4 {[%clk 0:00:04.2]} 20... Nf3+ {[%clk 0:01:29.7]} 21.
Kf2 {[%clk 0:00:04.7]} 21... Ng5 {[%clk 0:01:15.9]} 22. Qe5 {[%clk 0:00:05.2]}
22... Qb6+ {[%clk 0:00:54.8]} 23. Qd4 {[%clk 0:00:05.1]} 23... Qg6 {[%clk
0:00:50.4]} 24. Bxg5 {[%clk 0:00:03.9]} 24... Qxg5 {[%clk 0:00:51.3]} 25. Qf4
{[%clk 0:00:04.2]} 25... Qg6 {[%clk 0:00:47.8]} 26. Nd4 {[%clk 0:00:04.6]} 26...
a5 {[%clk 0:00:42.7]} 27. Rae1 {[%clk 0:00:04.7]} 27... axb4 {[%clk 0:00:41.8]}
28. axb4 {[%clk 0:00:05.6]} 28... Ra2 {[%clk 0:00:41]} 29. Re2 {[%clk
0:00:05.6]} 29... b6 {[%clk 0:00:39]} 30. Rhe1 {[%clk 0:00:05.9]} 30... Ba6
{[%clk 0:00:38.8]} 31. Rd2 {[%clk 0:00:06.3]} 31... h6 {[%clk 0:00:37.8]} 32. c3
{[%clk 0:00:06.7]} 32... Ra3 {[%clk 0:00:35.4]} 33. Be4 {[%clk 0:00:06.4]} 33...
Qh5 {[%clk 0:00:32.6]} 34. Qg4 {[%clk 0:00:04.2]} 34... Qxg4 {[%clk 0:00:27.2]}
35. hxg4 {[%clk 0:00:05.1]} 35... Rxc3 {[%clk 0:00:27.6]} 36. Bd5 {[%clk
0:00:05.9]} 36... Bc4 {[%clk 0:00:24]} 37. Ne2 {[%clk 0:00:02.8]} 37... Bxe2
{[%clk 0:00:21.8]} 38. Rexe2 {[%clk 0:00:03.7]} 38... Kh7 {[%clk 0:00:19.1]} 39.
Re7 {[%clk 0:00:04]} 39... f6 {[%clk 0:00:18.7]} 40. Be4+ {[%clk 0:00:04.6]}
40... Kg8 {[%clk 0:00:18.7]} 41. Rdd7 {[%clk 0:00:04.9]} 41... Rfc8 {[%clk
0:00:16.2]} 42. Rxg7+ {[%clk 0:00:05.2]} 42... Kf8 {[%clk 0:00:17.1]} 43. Rdf7+
{[%clk 0:00:04.9]} 43... Ke8 {[%clk 0:00:17.4]} 44. Bg6 {[%clk 0:00:04.7]} 44...
Rc2+ {[%clk 0:00:17.1]} 45. Bxc2 {[%clk 0:00:04.5]} 45... Rxc2+ {[%clk 0:00:18]}
46. Ke3 {[%clk 0:00:05.2]} 46... Rc3+ {[%clk 0:00:18.2]} 47. Kf4 {[%clk
0:00:05.9]} 47... Rc4+ {[%clk 0:00:18.3]} 48. Kf5 {[%clk 0:00:06.7]} 48... Rxb4
{[%clk 0:00:19.2]} 49. Rb7 {[%clk 0:00:06.9]} 49... Kf8 {[%clk 0:00:18.5]} 50.
Rgf7+ {[%clk 0:00:06.6]} 50... Kg8 {[%clk 0:00:18.9]} 51. Rfc7 {[%clk
0:00:07.5]} 51... Rb5+ {[%clk 0:00:18.4]} 52. Kxf6 {[%clk 0:00:08]} 52... Rc5
{[%clk 0:00:18]} 53. Rb8# {[%clk 0:00:07.8]} 1-0